Workbook

Sheet Sheet1
A4: INSTRUCTIONS: Use this form when a single information collection document involves multiple reporting and recordkeeping requirements. The totals of the figures in cols. should be entered in item 13 of OMB-83-1: cols. (D) &/or (I) = 13a (respondent is only counted once); cols. F & I = 13b; cols. H & K = 13c. (F)Total/(D)Total = (E)Average (H)Total/(F)Total = (G)Average (K)Total/(I)Total = (J)Average NOTE: The columns will calculate automatically. If Col. E's response is something other than annually, i.e., 1/6 years, list as "1/6" & decimal will display. | I4: TITLE OF INFORMATION COLLECTION DOCUMENT | N4: OMB NO.
I6: Reporting and Recordkeeping Requirements Under Regulations (Other than Rules of Practice) Under the Perishable Agricultural Commodities Act, 1930 | N6: 0581-0031
N9: DATE PREPARED
N11: 2013-04-24
A13: IDENTIFICATION OF REPORTING OR RECORDKEEPING REQUIREMENT | H13: ANNUAL BURDEN
H15: REPORTS | M15: RECORDS
O17: TOTAL
G18: FORMS NO (S) | H18: NO. OF | I18: NO OF | J18: TOTAL ANNUAL | K18: HOURS | L18: TOTAL | M18: NO. OF | N18: ANNUAL | O18: RECORD-
A19: SECTION OF | B19: DESCRIPTION | G19: (If "none" | H19: RESPONDENTS | I19: RESPONSES | J19: RESPONSES | K19: PER | L19: HOURS | M19: RECORD- | N19: HOURS PER | O19: KEEPING HOURS
A20: REGS. | G20: so state) | I20: PER | J20: (Col. D x E) | K20: RESPONSE | L20: (Col. F x G) | M20: KEEPERS | N20: RECORD- | O20: (Col. I x J)
I21: RESPONDENT | N21: KEEPER
A22: (A) | B22: (B) | G22: (C) | H22: (D) | I22: (E) | J22: (F) | K22: (G) | L22: (H) | M22: (I) | N22: (J) | O22: (K)
A23: 46.4 | B23: Application for License (FV-211) | G23: FV-211 | H23: 1,331 | I23: 1.0000 | J23: =SUM(H23*I23) -> 1,331.00 | K23: 0.2500 | L23: =SUM(J23*K23) -> 332.75 | O23: =SUM(M23*N23) -> 0.00
A24: 46.9 | B24: License Renewal Application or License Reinstatement Notice (FV-231-1 or 231-2 or 231-1A or 231-2A) | G24: FV-231- 231-2A | H24: 14,540 | I24: 1.0000 | J24: =SUM(H24*I24) -> 14,540.00 | K24: 0.0500 | L24: =SUM(J24*K24) -> 727.00 | O24: =SUM(M24*N24) -> 0.00
A25: 46.13 | B25: Letters to Notify USDA of Changes (address, ownership, trade names, etc.) | G25: None | H25: 900 | I25: 1.0000 | J25: 900.00 | K25: 0.0500 | L25: 45.00 | O25: 0.00
A26: 46.4 | B26: Limited Liability Company Articles of Organization and Operating Agreement | G26: None | H26: 2,473 | I26: 1.0000 | J26: 2,473.00 | K26: 0.0830 | L26: 205.26 | O26: 0.00
A27: 46.20 | B27: Lot Numbers | G27: None | J27: 0.00 | L27: 0.00 | M27: 683 | N27: 8.250 | O27: 5,634.75
A28: 46.46(c)(2) | B28: Waiver of Rights to Trust Protection | G28: None | H28: 100 | I28: 1.0000 | J28: 100.00 | K28: 0.2500 | L28: 25.00 | O28: 0.00
A29: 46.2(aa)(11) & 46.46(e)(1) | B29: Maintain Copy of Written Agreement Reflecting Different Times for Payment (Commission Merchants, Dealers, and Brokers) | G29: None | J29: 0.00 | L29: 0.00 | M29: 2,343 | N29: 20.000 | O29: 46,860.00
A30: 46.18 | B30: Record of Produce Received | J30: 0.00 | L30: 0.00 | M30: 6,725 | N30: 5.000 | O30: 33,625.00
B31: SUBTOTAL | J31: =SUM(J23:J30) -> 19,344.00 | L31: =SUM(L23:L30) -> 1,335 | M31: =SUM(M23:M30) -> 9,751.00 | O31: =SUM(O23:O30) -> 86,119.75
B32: TOTAL OF ALL PAGES | J32: =SUM(J31+J62) -> 19,344.00 | L32: =SUM(L31+L62) -> 1,335.01 | M32: =SUM(M31+M62) -> 9,751.00 | O32: =SUM(O31+O62) -> 86,119.75
A33: TOTAL - COLUMNS "F" AND "I" = OMB 831, 13 b; COLUMNS "H" AND "K" = OMB 831, 13c | J33: =SUM(J32+M32) -> 29,095.00 | L33: =SUM(L32+O32) -> 87,455
A37: INSTRUCTIONS: Use this form when a single information collection document involves multiple reporting and recordkeeping requirements. The totals of the figures in cols. should be entered in item 13 of OMB-83-1: cols. (D) &/or (I) = 13a (respondent is only counted once); cols. F & I = 13b; cols. H & K = 13c. (F)Total/(D)Total = (E)Average (H)Total/(F)Total = (G)Average (K)Total/(I)Total = (J)Average NOTE: The columns will calculate automatically. If Col. E's response is something other than annually, i.e., 1/6 years, list as "1/6" & decimal will display. | I37: TITLE OF INFORMATION COLLECTION DOCUMENT | N37: OMB NO.
I39: Reporting and Recordkeeping Requirements Under Regulations (Other than Rules of Practice) Under the Perishable Agricultural Commodities Act, 1930 | N39: 0581-0031
N42: DATE PREPARED
N44: 2013-04-24
A46: IDENTIFICATION OF REPORTING OR RECORDKEEPING REQUIREMENT | H46: ANNUAL BURDEN
H48: REPORTS | M48: RECORDS
O50: TOTAL
G51: FORMS NO (S) | H51: NO. OF | I51: NO OF | J51: TOTAL ANNUAL | K51: HOURS | L51: TOTAL | M51: NO. OF | N51: ANNUAL | O51: RECORD-
A52: SECTION OF | B52: DESCRIPTION | G52: (If "none" | H52: RESPONDENTS | I52: RESPONSES | J52: RESPONSES | K52: PER | L52: HOURS | M52: RECORD- | N52: HOURS PER | O52: KEEPING HOURS
A53: REGS. | G53: so state) | I53: PER | J53: (Col. D x E) | K53: RESPONSE | L53: (Col. F x G) | M53: KEEPERS | N53: RECORD- | O53: (Col. I x J)
I54: RESPONDENT | N54: KEEPER
A55: (A) | B55: (B) | G55: (C) | H55: (D) | I55: (E) | J55: (F) | K55: (G) | L55: (H) | M55: (I) | N55: (J) | O55: (K)
A56: 46.9 | B56: License Application Certificate (USDA completes form - no burden placed on public. | G56: FV-231 | J56: =SUM(H56*I56) -> 0.00 | L56: =SUM(J56*K56) -> 0.00 | O56: =SUM(M56*N56) -> 0.00
J57: 0.00 | L57: 0.00 | O57: 0.00
J58: 0.00 | L58: 0.00 | O58: 0.00
J59: 0.00 | L59: 0.00 | O59: 0.00
J60: 0.00 | L60: 0.00 | O60: 0.00
J61: 0.00 | L61: 0.00 | O61: 0.00
B62: SUBTOTAL | J62: =SUM(J56:J61) -> 0.00 | L62: =SUM(L56:L61) -> 0.00 | M62: =SUM(M56:M61) -> 0 | O62: =SUM(O56:O61) -> 0.00
